[Event "*** SCC Grand Prix: Titled Tuesday Blitz"]
[Site "Chess.com"]
[Date "2020.07.07"]
[Round "1"]
[White "GrafLermontov"]
[Black "QueenOfTactics90"]
[Result "1-0"]
[WhiteElo "2486"]
[BlackElo "2019"]
[TimeControl "180+1"]
[EndTime "10:03:57 PDT"]
[Termination "GrafLermontov won by resignation"]

1. d4 {[%clk 0:02:49.9]} 1... Nf6 {[%clk 0:02:57.8]} 2. c4 {[%clk 0:02:50.4]}
2... e6 {[%clk 0:02:57.9]} 3. Nf3 {[%clk 0:02:50.2]} 3... d5 {[%clk 0:02:57.8]}
4. Nc3 {[%clk 0:02:50.6]} 4... c5 {[%clk 0:02:58.4]} 5. cxd5 {[%clk 0:02:49.6]}
5... exd5 {[%clk 0:02:56.9]} 6. g3 {[%clk 0:02:46.7]} 6... Nc6 {[%clk
0:02:56.1]} 7. Bg2 {[%clk 0:02:46.5]} 7... Be7 {[%clk 0:02:53.9]} 8. O-O {[%clk
0:02:43.7]} 8... O-O {[%clk 0:02:53.2]} 9. Bg5 {[%clk 0:02:40.9]} 9... cxd4
{[%clk 0:02:52.3]} 10. Nxd4 {[%clk 0:02:41.8]} 10... Nxd4 {[%clk 0:02:52.3]} 11.
Qxd4 {[%clk 0:02:40.2]} 11... Be6 {[%clk 0:02:44.7]} 12. Rfd1 {[%clk 0:02:37.5]}
12... Rc8 {[%clk 0:02:35]} 13. Rac1 {[%clk 0:02:27.7]} 13... Rc4 {[%clk
0:02:31.6]} 14. Qd2 {[%clk 0:02:16.5]} 14... Ne4 {[%clk 0:02:06.9]} 15. Nxe4
{[%clk 0:02:12.5]} 15... dxe4 {[%clk 0:01:55]} 16. Qxd8 {[%clk 0:01:26.9]} 16...
Rxc1 {[%clk 0:01:43.5]} 17. Qxf8+ {[%clk 0:01:19.9]} 1-0

[Event "*** SCC Grand Prix: Titled Tuesday Blitz"]
[Site "Chess.com"]
[Date "2020.07.07"]
[Round "1"]
[White "ItsCheckM8Mate"]
[Black "djogrodek1"]
[Result "1-0"]
[WhiteElo "2259"]
[BlackElo "2553"]
[TimeControl "180+1"]
[EndTime "10:03:58 PDT"]
[Termination "ItsCheckM8Mate won on time"]

1. e4 {[%clk 0:03:00.9]} 1... c5 {[%clk 0:02:58.2]} 2. Nf3 {[%clk 0:03:00.8]}
2... e6 {[%clk 0:02:58.2]} 3. d4 {[%clk 0:03:00.7]} 3... cxd4 {[%clk 0:02:58.1]}
4. Nxd4 {[%clk 0:03:01.6]} 4... Nf6 {[%clk 0:02:58.2]} 5. Nc3 {[%clk 0:03:01.2]}
5... Nc6 {[%clk 0:02:58.5]} 6. Ndb5 {[%clk 0:03:00.4]} 6... Bb4 {[%clk
0:02:58.1]} 7. a3 {[%clk 0:02:59.8]} 7... Bxc3+ {[%clk 0:02:53.8]} 8. Nxc3
{[%clk 0:03:00.7]} 8... d5 {[%clk 0:02:53.5]} 9. exd5 {[%clk 0:03:00.4]} 9...
exd5 {[%clk 0:02:54.4]} 10. Bd3 {[%clk 0:03:00.9]} 10... O-O {[%clk 0:02:53.4]}
11. O-O {[%clk 0:03:00.5]} 11... d4 {[%clk 0:02:53.6]} 12. Ne2 {[%clk
0:03:00.2]} 12... Bg4 {[%clk 0:02:36]} 13. f3 {[%clk 0:02:46.7]} 1-0

[Event "*** SCC Grand Prix: Titled Tuesday Blitz"]
[Site "Chess.com"]
[Date "2020.07.07"]
[Round "1"]
[White "Nikithebest"]
[Black "Joseacorrea"]
[Result "1-0"]
[WhiteElo "2476"]
[BlackElo "1904"]
[TimeControl "180+1"]
[EndTime "10:03:59 PDT"]
[Termination "Nikithebest won by resignation"]

1. e4 {[%clk 0:03:00.9]} 1... c5 {[%clk 0:02:59]} 2. Nf3 {[%clk 0:03:01]} 2...
Nc6 {[%clk 0:02:59]} 3. Bb5 {[%clk 0:03:00.6]} 3... Nd4 {[%clk 0:02:58.1]} 4.
Nxd4 {[%clk 0:02:59.9]} 4... cxd4 {[%clk 0:02:59]} 5. O-O {[%clk 0:03:00.2]}
5... g6 {[%clk 0:02:58.7]} 6. c3 {[%clk 0:03:00.4]} 6... dxc3 {[%clk 0:02:57.7]}
7. Nxc3 {[%clk 0:02:59.7]} 7... Bg7 {[%clk 0:02:57.6]} 8. d4 {[%clk 0:02:59.9]}
8... a6 {[%clk 0:02:56.2]} 9. Bc4 {[%clk 0:02:59.2]} 9... Nf6 {[%clk 0:02:53.5]}
10. e5 {[%clk 0:02:58.7]} 10... Ng8 {[%clk 0:02:52.9]} 11. Qf3 {[%clk
0:02:55.7]} 11... e6 {[%clk 0:02:39.9]} 12. Ne4 {[%clk 0:02:53.6]} 12... d5
{[%clk 0:02:39.9]} 13. Nd6+ {[%clk 0:02:51.1]} 13... Kd7 {[%clk 0:02:35.1]} 14.
Nxf7 {[%clk 0:02:35.3]} 14... Qf8 {[%clk 0:02:32.2]} 15. Be2 {[%clk 0:02:27.3]}
15... Ne7 {[%clk 0:02:31.6]} 16. Nxh8 {[%clk 0:02:26.8]} 16... Qxf3 {[%clk
0:02:27.3]} 17. Bxf3 {[%clk 0:02:26.3]} 17... Bxh8 {[%clk 0:02:28.2]} 18. Be3
{[%clk 0:02:20.4]} 18... b6 {[%clk 0:02:21.2]} 19. Rfc1 {[%clk 0:02:20.9]} 19...
Bb7 {[%clk 0:02:21.7]} 20. Rc2 {[%clk 0:02:21.1]} 20... Rc8 {[%clk 0:02:21.6]}
21. Rxc8 {[%clk 0:02:20.3]} 21... Bxc8 {[%clk 0:02:19.4]} 22. g4 {[%clk
0:02:20.8]} 22... Bg7 {[%clk 0:02:18.5]} 23. Rc1 {[%clk 0:02:19.9]} 23... Bb7
{[%clk 0:02:09.7]} 24. h4 {[%clk 0:02:19.4]} 24... b5 {[%clk 0:02:02]} 25. Be2
{[%clk 0:02:10.1]} 25... Nc8 {[%clk 0:01:56.6]} 26. b3 {[%clk 0:02:09.6]} 26...
Bf8 {[%clk 0:01:48.7]} 27. f4 {[%clk 0:02:09.4]} 27... Be7 {[%clk 0:01:41.5]}
28. Kg2 {[%clk 0:02:04.8]} 28... Bxh4 {[%clk 0:01:29.3]} 29. Rh1 {[%clk
0:02:04]} 29... Be7 {[%clk 0:01:26.7]} 30. Rxh7 {[%clk 0:02:03.8]} 1-0

[Event "*** SCC Grand Prix: Titled Tuesday Blitz"]
[Site "Chess.com"]
[Date "2020.07.07"]
[Round "1"]
[White "lukas_111111"]
[Black "pavelalexandru07"]
[Result "1-0"]
[WhiteElo "2533"]
[BlackElo "2169"]
[TimeControl "180+1"]
[EndTime "10:04:04 PDT"]
[Termination "lukas_111111 won by resignation"]

1. e4 {[%clk 0:03:00.1]} 1... c5 {[%clk 0:02:57.2]} 2. Nf3 {[%clk 0:03:00]} 2...
d6 {[%clk 0:02:56.2]} 3. d4 {[%clk 0:03:00.1]} 3... cxd4 {[%clk 0:02:55.9]} 4.
Nxd4 {[%clk 0:03:01]} 4... Nf6 {[%clk 0:02:56]} 5. Nc3 {[%clk 0:03:01.4]} 5...
a6 {[%clk 0:02:56]} 6. Bg5 {[%clk 0:03:01.3]} 6... Nbd7 {[%clk 0:02:56]} 7. Bc4
{[%clk 0:03:01.1]} 7... Qb6 {[%clk 0:02:55.3]} 8. Bb3 {[%clk 0:03:00.9]} 8... e6
{[%clk 0:02:54.2]} 9. Bxf6 {[%clk 0:03:01.2]} 9... Nxf6 {[%clk 0:02:53.6]} 10.
Qd2 {[%clk 0:03:01.6]} 10... Be7 {[%clk 0:02:51.7]} 11. O-O-O {[%clk 0:03:01.5]}
11... Qc7 {[%clk 0:02:50.3]} 12. f4 {[%clk 0:03:01.5]} 12... b5 {[%clk
0:02:38.5]} 13. f5 {[%clk 0:03:01.5]} 13... e5 {[%clk 0:02:37.8]} 14. Nde2
{[%clk 0:03:01.4]} 14... Bb7 {[%clk 0:02:31.6]} 15. Kb1 {[%clk 0:02:58.8]} 15...
Rc8 {[%clk 0:02:30.3]} 16. Ng3 {[%clk 0:02:46.4]} 16... O-O {[%clk 0:02:12.8]}
17. Nd5 {[%clk 0:02:40.8]} 17... Bxd5 {[%clk 0:02:09.9]} 18. Bxd5 {[%clk
0:02:40.9]} 18... Nxd5 {[%clk 0:02:07.6]} 19. exd5 {[%clk 0:02:40.7]} 19... Qc4
{[%clk 0:02:01]} 20. Rhe1 {[%clk 0:02:34.1]} 20... g6 {[%clk 0:01:16.1]} 21. Re4
{[%clk 0:02:31.1]} 21... Qc5 {[%clk 0:01:12.9]} 22. Rg4 {[%clk 0:02:30]} 22...
Bd8 {[%clk 0:00:51.2]} 23. f6 {[%clk 0:02:27.2]} 23... Qc7 {[%clk 0:00:41]} 24.
Ne4 {[%clk 0:02:26.1]} 24... Qd7 {[%clk 0:00:38.1]} 25. Qh6 {[%clk 0:02:23.7]}
1-0

[Event "*** SCC Grand Prix: Titled Tuesday Blitz"]
[Site "Chess.com"]
[Date "2020.07.07"]
[Round "1"]
[White "Ashedu66"]
[Black "Matveev_Vladimir"]
[Result "0-1"]
[WhiteElo "2152"]
[BlackElo "2527"]
[TimeControl "180+1"]
[EndTime "10:04:13 PDT"]
[Termination "Matveev_Vladimir won by resignation"]

1. d4 {[%clk 0:02:59.2]} 1... Nf6 {[%clk 0:02:59.7]} 2. Nf3 {[%clk 0:02:58.5]}
2... g6 {[%clk 0:03:00.2]} 3. c4 {[%clk 0:02:57.6]} 3... Bg7 {[%clk 0:03:00.7]}
4. Nc3 {[%clk 0:02:56.5]} 4... O-O {[%clk 0:03:01.6]} 5. e4 {[%clk 0:02:54.9]}
5... d6 {[%clk 0:03:01.7]} 6. h3 {[%clk 0:02:53.5]} 6... e5 {[%clk 0:03:01.4]}
7. d5 {[%clk 0:02:52.5]} 7... a5 {[%clk 0:03:01.4]} 8. Bg5 {[%clk 0:02:51.1]}
8... Na6 {[%clk 0:02:58.9]} 9. Nd2 {[%clk 0:02:48.5]} 9... Qe8 {[%clk
0:02:45.1]} 10. g4 {[%clk 0:02:38.9]} 10... Nd7 {[%clk 0:02:44.2]} 11. Be2
{[%clk 0:02:36.5]} 11... Ndc5 {[%clk 0:02:42.2]} 12. a3 {[%clk 0:02:10.4]} 12...
a4 {[%clk 0:02:40.4]} 13. h4 {[%clk 0:02:02]} 13... f5 {[%clk 0:02:39.7]} 14. h5
{[%clk 0:01:51.4]} 14... fxg4 {[%clk 0:02:36.8]} 15. hxg6 {[%clk 0:01:47.6]}
15... Qxg6 {[%clk 0:02:36.5]} 16. Be3 {[%clk 0:01:36.2]} 16... h5 {[%clk
0:02:36]} 17. Qc2 {[%clk 0:01:30.8]} 17... Bh6 {[%clk 0:02:31.6]} 18. O-O-O
{[%clk 0:01:24.2]} 18... Bxe3 {[%clk 0:02:27.1]} 19. fxe3 {[%clk 0:01:21.2]}
19... Bd7 {[%clk 0:02:20.9]} 20. Rdg1 {[%clk 0:01:15.3]} 20... Rf2 {[%clk
0:02:12.5]} 21. Bd1 {[%clk 0:01:01.2]} 21... Nb3+ {[%clk 0:02:09.1]} 0-1

[Event "*** SCC Grand Prix: Titled Tuesday Blitz"]
[Site "Chess.com"]
[Date "2020.07.07"]
[Round "1"]
[White "Tsyhanchuk_Stanislav"]
[Black "Grandelicious"]
[Result "0-1"]
[WhiteElo "2409"]
[BlackElo "2770"]
[TimeControl "180+1"]
[EndTime "10:04:17 PDT"]
[Termination "Grandelicious won by resignation"]

1. e4 {[%clk 0:02:50.4]} 1... c6 {[%clk 0:02:59.5]} 2. d4 {[%clk 0:02:50]} 2...
d5 {[%clk 0:02:59.8]} 3. Nc3 {[%clk 0:02:50.9]} 3... dxe4 {[%clk 0:02:59.8]} 4.
Nxe4 {[%clk 0:02:51.8]} 4... Nf6 {[%clk 0:03:00.3]} 5. Nxf6+ {[%clk 0:02:51.7]}
5... exf6 {[%clk 0:03:01.2]} 6. c3 {[%clk 0:02:52.6]} 6... Bd6 {[%clk
0:03:00.9]} 7. Bd3 {[%clk 0:02:53.2]} 7... O-O {[%clk 0:03:00.9]} 8. Ne2 {[%clk
0:02:53]} 8... Re8 {[%clk 0:03:00.8]} 9. Qc2 {[%clk 0:02:53.5]} 9... h5 {[%clk
0:03:00.9]} 10. Be3 {[%clk 0:02:53.5]} 10... Nd7 {[%clk 0:02:54.6]} 11. O-O-O
{[%clk 0:02:53.2]} 11... Nf8 {[%clk 0:02:51.8]} 12. c4 {[%clk 0:02:52.9]} 12...
Be6 {[%clk 0:02:41.3]} 13. Nc3 {[%clk 0:02:48.1]} 13... Bb4 {[%clk 0:02:34.6]}
14. h3 {[%clk 0:02:46.7]} 14... b5 {[%clk 0:02:14.8]} 15. g4 {[%clk 0:02:33.8]}
15... h4 {[%clk 0:02:02.4]} 16. Rhg1 {[%clk 0:02:18]} 16... bxc4 {[%clk
0:01:58.3]} 17. Be4 {[%clk 0:02:18.1]} 17... Bxc3 {[%clk 0:01:44.2]} 18. Qxc3
{[%clk 0:02:16.2]} 18... Bd5 {[%clk 0:01:42.9]} 19. Bb1 {[%clk 0:02:13]} 19...
Qd7 {[%clk 0:01:37.7]} 20. g5 {[%clk 0:02:11.6]} 20... f5 {[%clk 0:01:37.6]} 21.
g6 {[%clk 0:02:05.7]} 21... Nxg6 {[%clk 0:01:36.8]} 22. Rg5 {[%clk 0:02:05.1]}
22... Be4 {[%clk 0:01:17.4]} 23. Qxc4 {[%clk 0:02:03.4]} 23... Bxb1 {[%clk
0:01:15.6]} 24. Kxb1 {[%clk 0:02:03.6]} 24... f4 {[%clk 0:01:08.4]} 25. Bc1
{[%clk 0:02:00.6]} 25... Qxh3 {[%clk 0:01:00]} 26. Rxg6 {[%clk 0:01:59.6]} 26...
Qf5+ {[%clk 0:00:59.5]} 27. Qc2 {[%clk 0:01:56.4]} 0-1

[Event "*** SCC Grand Prix: Titled Tuesday Blitz"]
[Site "Chess.com"]
[Date "2020.07.07"]
[Round "1"]
[White "GoltsevDmitry2000"]
[Black "memer5334"]
[Result "1-0"]
[WhiteElo "2562"]
[BlackElo "2211"]
[TimeControl "180+1"]
[EndTime "10:04:33 PDT"]
[Termination "GoltsevDmitry2000 won by resignation"]

1. e4 {[%clk 0:03:00.7]} 1... b6 {[%clk 0:02:57.5]} 2. Nc3 {[%clk 0:03:00]} 2...
Bb7 {[%clk 0:02:55.1]} 3. d4 {[%clk 0:02:59.8]} 3... Nf6 {[%clk 0:02:54.5]} 4.
Bd3 {[%clk 0:02:58.5]} 4... Nc6 {[%clk 0:02:50.8]} 5. Nge2 {[%clk 0:02:58.4]}
5... e5 {[%clk 0:02:50.6]} 6. d5 {[%clk 0:02:56.4]} 6... Nd4 {[%clk 0:02:50.9]}
7. Nxd4 {[%clk 0:02:55.6]} 7... exd4 {[%clk 0:02:51.8]} 8. Ne2 {[%clk
0:02:56.5]} 8... Bb4+ {[%clk 0:02:47.6]} 9. Bd2 {[%clk 0:02:56.5]} 9... Bxd2+
{[%clk 0:02:45.5]} 10. Qxd2 {[%clk 0:02:57.4]} 10... c5 {[%clk 0:02:45.8]} 11.
O-O {[%clk 0:02:52.6]} 11... O-O {[%clk 0:02:45.2]} 12. c4 {[%clk 0:02:49]}
12... d6 {[%clk 0:02:44]} 13. f4 {[%clk 0:02:42.3]} 13... Ng4 {[%clk 0:02:43.9]}
14. Rf3 {[%clk 0:02:32.5]} 14... Qh4 {[%clk 0:02:23]} 15. h3 {[%clk 0:02:21.7]}
15... Ne3 {[%clk 0:02:22.1]} 16. Ng3 {[%clk 0:02:16.4]} 16... Bc8 {[%clk
0:02:13.5]} 17. Re1 {[%clk 0:02:13.2]} 17... f5 {[%clk 0:01:59]} 18. e5 {[%clk
0:02:08.2]} 18... dxe5 {[%clk 0:01:58.1]} 19. fxe5 {[%clk 0:02:09.1]} 19... g5
{[%clk 0:01:38.7]} 20. e6 {[%clk 0:02:07.5]} 20... g4 {[%clk 0:01:33.9]} 21.
Nxf5 {[%clk 0:02:02.3]} 21... gxf3 {[%clk 0:01:20]} 22. Nxh4 {[%clk 0:01:58]}
22... f2+ {[%clk 0:01:19.2]} 23. Qxf2 {[%clk 0:01:57.7]} 23... Rxf2 {[%clk
0:01:18.9]} 24. Kxf2 {[%clk 0:01:58.6]} 24... Kf8 {[%clk 0:01:16.4]} 25. Rxe3
{[%clk 0:01:49.3]} 25... dxe3+ {[%clk 0:01:16.5]} 26. Kxe3 {[%clk 0:01:50.2]}
26... Ba6 {[%clk 0:01:16.6]} 27. Nf5 {[%clk 0:01:47.7]} 27... Re8 {[%clk
0:01:14.2]} 28. Kf4 {[%clk 0:01:46]} 28... Bc8 {[%clk 0:01:13.3]} 29. Ke5 {[%clk
0:01:45.6]} 29... Kg8 {[%clk 0:01:10.9]} 30. Nd6 {[%clk 0:01:44.4]} 30... Rd8
{[%clk 0:01:11.2]} 31. e7 {[%clk 0:01:41.8]} 1-0

[Event "*** SCC Grand Prix: Titled Tuesday Blitz"]
[Site "Chess.com"]
[Date "2020.07.07"]
[Round "1"]
[White "ArnieChipmunk"]
[Black "Lagmantr"]
[Result "0-1"]
[WhiteElo "2324"]
[BlackElo "2652"]
[TimeControl "180+1"]
[EndTime "10:04:48 PDT"]
[Termination "Lagmantr won by resignation"]

1. e4 {[%clk 0:03:00.6]} 1... c5 {[%clk 0:03:00]} 2. Nf3 {[%clk 0:03:00.5]} 2...
d6 {[%clk 0:03:00.4]} 3. d4 {[%clk 0:03:00.8]} 3... cxd4 {[%clk 0:03:01.3]} 4.
Nxd4 {[%clk 0:03:01.4]} 4... Nf6 {[%clk 0:03:01.9]} 5. Nc3 {[%clk 0:03:01.9]}
5... a6 {[%clk 0:03:02.4]} 6. Bg5 {[%clk 0:03:02.2]} 6... Nbd7 {[%clk
0:03:00.9]} 7. Qe2 {[%clk 0:03:01.3]} 7... h6 {[%clk 0:02:59.4]} 8. Bxf6 {[%clk
0:03:01.4]} 8... Nxf6 {[%clk 0:02:56.9]} 9. O-O-O {[%clk 0:03:01.8]} 9... Qc7
{[%clk 0:02:54.3]} 10. Nd5 {[%clk 0:02:52.6]} 10... Nxd5 {[%clk 0:02:51.9]} 11.
exd5 {[%clk 0:02:52.9]} 11... g6 {[%clk 0:02:51.5]} 12. Kb1 {[%clk 0:02:51.4]}
12... Bg7 {[%clk 0:02:51.4]} 13. f4 {[%clk 0:02:46.4]} 13... O-O {[%clk
0:02:49]} 14. g4 {[%clk 0:02:27.4]} 14... Bd7 {[%clk 0:02:36.3]} 15. f5 {[%clk
0:02:26.3]} 15... Rac8 {[%clk 0:02:33.6]} 16. Bg2 {[%clk 0:02:15.2]} 16... Ba4
{[%clk 0:02:24]} 17. fxg6 {[%clk 0:01:54.5]} 17... fxg6 {[%clk 0:02:18.7]} 18.
Qe6+ {[%clk 0:01:45.5]} 18... Kh7 {[%clk 0:02:11]} 19. Rhe1 {[%clk 0:00:18.5]}
19... Bxc2+ {[%clk 0:02:02.3]} 20. Ka1 {[%clk 0:00:16.4]} 20... Bxd1 {[%clk
0:02:01.9]} 0-1

[Event "*** SCC Grand Prix: Titled Tuesday Blitz"]
[Site "Chess.com"]
[Date "2020.07.07"]
[Round "1"]
[White "Glidzhian_Gor"]
[Black "Jumbo"]
[Result "0-1"]
[WhiteElo "2444"]
[BlackElo "2896"]
[TimeControl "180+1"]
[EndTime "10:04:54 PDT"]
[Termination "Jumbo won by resignation"]

1. e4 {[%clk 0:03:00.9]} 1... c5 {[%clk 0:02:58.6]} 2. Nf3 {[%clk 0:02:58.8]}
2... d6 {[%clk 0:02:58.7]} 3. c3 {[%clk 0:02:55.5]} 3... Nf6 {[%clk 0:02:58.2]}
4. Bd3 {[%clk 0:02:55.6]} 4... Bg4 {[%clk 0:02:56.7]} 5. h3 {[%clk 0:02:55.1]}
5... Bh5 {[%clk 0:02:56.2]} 6. Bc2 {[%clk 0:02:55.3]} 6... e6 {[%clk 0:02:55.9]}
7. O-O {[%clk 0:02:55.4]} 7... Be7 {[%clk 0:02:52.8]} 8. Re1 {[%clk 0:02:55.4]}
8... O-O {[%clk 0:02:44.1]} 9. d4 {[%clk 0:02:52.5]} 9... cxd4 {[%clk
0:02:35.2]} 10. cxd4 {[%clk 0:02:52.1]} 10... d5 {[%clk 0:02:35.4]} 11. e5
{[%clk 0:02:50.9]} 11... Nfd7 {[%clk 0:02:30.7]} 12. Nc3 {[%clk 0:02:42.5]}
12... Nc6 {[%clk 0:02:30.5]} 13. Be3 {[%clk 0:02:30.3]} 13... Rc8 {[%clk
0:01:48.2]} 14. Rc1 {[%clk 0:02:02.6]} 14... Qb6 {[%clk 0:01:46.3]} 15. Na4
{[%clk 0:01:57.5]} 15... Qa5 {[%clk 0:01:45.6]} 16. Bb1 {[%clk 0:01:53.2]} 16...
Bxf3 {[%clk 0:01:18.9]} 17. gxf3 {[%clk 0:01:49.9]} 17... g6 {[%clk 0:01:18.8]}
18. Nc3 {[%clk 0:01:39.7]} 18... Rfd8 {[%clk 0:01:11]} 19. Kh2 {[%clk 0:01:34]}
19... Ndxe5 {[%clk 0:01:09.9]} 20. dxe5 {[%clk 0:01:31.1]} 20... d4 {[%clk
0:01:10]} 21. Bd2 {[%clk 0:01:22.8]} 21... dxc3 {[%clk 0:01:06.5]} 22. bxc3
{[%clk 0:01:19.2]} 22... Nxe5 {[%clk 0:01:02.1]} 23. c4 {[%clk 0:01:13.5]} 23...
Rxd2 {[%clk 0:01:00.1]} 0-1

[Event "*** SCC Grand Prix: Titled Tuesday Blitz"]
[Site "Chess.com"]
[Date "2020.07.07"]
[Round "1"]
[White "K-Nygren"]
[Black "dianamirza"]
[Result "1-0"]
[WhiteElo "2481"]
[BlackElo "1968"]
[TimeControl "180+1"]
[EndTime "10:05:02 PDT"]
[Termination "K-Nygren won by resignation"]

1. e4 {[%clk 0:02:59.2]} 1... e5 {[%clk 0:02:53]} 2. Nf3 {[%clk 0:02:58.8]} 2...
d6 {[%clk 0:02:51.8]} 3. d4 {[%clk 0:02:58]} 3... exd4 {[%clk 0:02:51.5]} 4.
Nxd4 {[%clk 0:02:58.6]} 4... Nf6 {[%clk 0:02:52.4]} 5. Nc3 {[%clk 0:02:58]} 5...
g6 {[%clk 0:02:52]} 6. f3 {[%clk 0:02:57]} 6... Bg7 {[%clk 0:02:52.3]} 7. Be3
{[%clk 0:02:57.3]} 7... O-O {[%clk 0:02:52.2]} 8. Qd2 {[%clk 0:02:57.6]} 8...
Nc6 {[%clk 0:02:46.9]} 9. h4 {[%clk 0:02:57.1]} 9... Re8 {[%clk 0:02:39]} 10.
O-O-O {[%clk 0:02:54.4]} 10... Nxd4 {[%clk 0:02:32.6]} 11. Bxd4 {[%clk
0:02:54.1]} 11... Be6 {[%clk 0:02:33.5]} 12. h5 {[%clk 0:02:49.4]} 12... c5
{[%clk 0:02:12.1]} 13. Be3 {[%clk 0:02:46.4]} 13... Nxh5 {[%clk 0:02:11.2]} 14.
g4 {[%clk 0:02:42.7]} 14... Ng3 {[%clk 0:02:03.4]} 15. Rh3 {[%clk 0:02:41.9]}
15... Nxf1 {[%clk 0:02:02.6]} 16. Rxf1 {[%clk 0:02:42.8]} 16... Qa5 {[%clk
0:02:01.4]} 17. Bh6 {[%clk 0:02:33.8]} 17... Bxc3 {[%clk 0:01:57.1]} 18. Qxc3
{[%clk 0:02:22.6]} 18... Qxc3 {[%clk 0:01:51.3]} 19. bxc3 {[%clk 0:02:23.5]}
19... Bxa2 {[%clk 0:01:51.5]} 20. Rfh1 {[%clk 0:02:21.2]} 20... d5 {[%clk
0:01:34.3]} 21. Bg5 {[%clk 0:02:16.1]} 21... dxe4 {[%clk 0:01:08.1]} 22. Rxh7
{[%clk 0:02:15.3]} 22... f5 {[%clk 0:01:02.3]} 23. Bf6 {[%clk 0:02:04.8]} 23...
Kf8 {[%clk 0:00:42.6]} 24. Rg7 {[%clk 0:01:54.1]} 24... Bg8 {[%clk 0:00:29.5]}
25. Rh8 {[%clk 0:01:48.3]} 1-0

[Event "*** SCC Grand Prix: Titled Tuesday Blitz"]
[Site "Chess.com"]
[Date "2020.07.07"]
[Round "1"]
[White "aljado"]
[Black "DraG0s3L"]
[Result "0-1"]
[WhiteElo "2098"]
[BlackElo "2507"]
[TimeControl "180+1"]
[EndTime "10:05:04 PDT"]
[Termination "DraG0s3L won by resignation"]

1. e4 {[%clk 0:03:00.4]} 1... e6 {[%clk 0:02:56]} 2. d4 {[%clk 0:02:59.1]} 2...
d5 {[%clk 0:02:56.3]} 3. e5 {[%clk 0:02:59]} 3... c5 {[%clk 0:02:56.4]} 4. c3
{[%clk 0:02:59]} 4... Nc6 {[%clk 0:02:57]} 5. Be3 {[%clk 0:02:57.9]} 5... Qb6
{[%clk 0:02:54.3]} 6. Qd2 {[%clk 0:02:57.4]} 6... Bd7 {[%clk 0:02:51.2]} 7. Nf3
{[%clk 0:02:56.7]} 7... Nge7 {[%clk 0:02:35.5]} 8. Bd3 {[%clk 0:02:50.6]} 8...
cxd4 {[%clk 0:02:31]} 9. cxd4 {[%clk 0:02:49.3]} 9... Nb4 {[%clk 0:02:31.4]} 10.
Be2 {[%clk 0:02:36.3]} 10... Rc8 {[%clk 0:02:30.7]} 11. Nc3 {[%clk 0:02:33.5]}
11... Nf5 {[%clk 0:02:30.5]} 12. O-O {[%clk 0:02:28.5]} 12... Be7 {[%clk
0:02:29.2]} 13. a3 {[%clk 0:02:11.6]} 13... Nc6 {[%clk 0:02:28.9]} 14. Rac1
{[%clk 0:02:03.4]} 14... Na5 {[%clk 0:02:24.2]} 15. b4 {[%clk 0:01:40.9]} 15...
Nb3 {[%clk 0:02:22.1]} 16. Qb2 {[%clk 0:01:35.1]} 16... Nxc1 {[%clk 0:02:21.8]}
17. Rxc1 {[%clk 0:01:34.2]} 17... O-O {[%clk 0:02:18.6]} 18. Bd3 {[%clk
0:01:12.2]} 18... Nxe3 {[%clk 0:02:16]} 19. fxe3 {[%clk 0:01:06.7]} 19... Rc7
{[%clk 0:02:15.1]} 20. Rf1 {[%clk 0:00:47.8]} 20... Rfc8 {[%clk 0:02:13.2]} 21.
Ne2 {[%clk 0:00:46.6]} 21... Bb5 {[%clk 0:02:11.9]} 22. Bb1 {[%clk 0:00:25.6]}
22... Qa6 {[%clk 0:02:03.9]} 23. Re1 {[%clk 0:00:15.7]} 23... Bd3 {[%clk
0:01:58.1]} 24. Ba2 {[%clk 0:00:12.2]} 24... Rc2 {[%clk 0:01:56.3]} 0-1

[Event "*** SCC Grand Prix: Titled Tuesday Blitz"]
[Site "Chess.com"]
[Date "2020.07.07"]
[Round "1"]
[White "esrosenberg"]
[Black "Timerkhanov"]
[Result "0-1"]
[WhiteElo "2291"]
[BlackElo "2618"]
[TimeControl "180+1"]
[EndTime "10:05:13 PDT"]
[Termination "Timerkhanov won on time"]

1. Nf3 {[%clk 0:03:00.8]} 1... d5 {[%clk 0:02:57]} 2. c4 {[%clk 0:03:00.9]} 2...
c6 {[%clk 0:02:56.2]} 3. d4 {[%clk 0:03:00.9]} 3... Nf6 {[%clk 0:02:55.5]} 4.
Nc3 {[%clk 0:03:01.2]} 4... dxc4 {[%clk 0:02:54.8]} 5. a4 {[%clk 0:02:55]} 5...
Bf5 {[%clk 0:02:54.6]} 6. e3 {[%clk 0:02:55.1]} 6... e6 {[%clk 0:02:54.4]} 7. a5
{[%clk 0:02:55.3]} 7... Bd3 {[%clk 0:02:41.5]} 8. Bxd3 {[%clk 0:02:46.1]} 8...
cxd3 {[%clk 0:02:42.4]} 9. Qxd3 {[%clk 0:02:46.1]} 9... Bb4 {[%clk 0:02:42]} 10.
O-O {[%clk 0:02:19.4]} 10... Bxa5 {[%clk 0:02:41.8]} 11. e4 {[%clk 0:02:12.9]}
11... Bb4 {[%clk 0:02:24.9]} 12. e5 {[%clk 0:02:07.6]} 12... Nd5 {[%clk
0:02:24.6]} 13. Nxd5 {[%clk 0:01:35.6]} 13... Qxd5 {[%clk 0:02:21.5]} 14. Ng5
{[%clk 0:01:14.7]} 14... Nd7 {[%clk 0:02:18.3]} 15. f4 {[%clk 0:01:04]} 15... h6
{[%clk 0:02:17.6]} 16. Ne4 {[%clk 0:00:32.9]} 16... Nc5 {[%clk 0:02:16.6]} 17.
Nxc5 {[%clk 0:00:23.8]} 17... Bxc5 {[%clk 0:02:16.3]} 18. Be3 {[%clk 0:00:24.2]}
18... Rd8 {[%clk 0:02:11.8]} 19. Rfd1 {[%clk 0:00:19.9]} 19... Bb6 {[%clk
0:02:10.2]} 20. f5 {[%clk 0:00:20.1]} 20... exf5 {[%clk 0:02:06.4]} 21. Qxf5
{[%clk 0:00:17.4]} 21... O-O {[%clk 0:02:05]} 22. Qg4 {[%clk 0:00:09.1]} 22...
Qe6 {[%clk 0:02:03.9]} 23. Qg3 {[%clk 0:00:06.9]} 23... Rd5 {[%clk 0:01:59]} 24.
h3 {[%clk 0:00:05.2]} 24... Rfd8 {[%clk 0:01:58.6]} 0-1